Workbook

Sheet Backpacking
A1: Trip length | K1: sum cj
B2: Days = | C2: 7 | D2: this is set up to require days to be entered | H2: calories per day = | J2: 1500 | K2: =C2*J2 -> 10500 | M2: Enter red | Q2: figures in
B3: Days = | C3: 0 | D3: this is set up to require days to be entered | H3: calories per day = | J3: 2500 | K3: =C3*J3 -> 0 | M3: items
B4: Days = | C4: 0 | D4: this is set up to require days to be entered | H4: calories per day = | J4: 3000 | K4: =C4*J4 -> 0
B5: Days = | C5: 0 | D5: this is set up to require days to be entered | H5: calories per day = | J5: 4000 | K5: 0
B6: Days = | C6: 0 | D6: this is set up to require days to be entered | H6: calories per day = | J6: 5000 | K6: 0
B8: Totals= | C8: =SUM(C2:C7) -> 7 | K8: =SUM(K2:K6) -> 10500
B10: See | C10: nutrition for hiking.html
B12: Weeks = | C12: =C8/7 -> 1 | H12: calorie factor = | J12: =K8/(C8*1500) -> 1 | Q12: this column
B13: Months = | C13: =C8*12/365 -> 0.2301369863 | L13: =ROUND(2.4,0) -> 2 | Q13: from the web
B15: #people= | C15: 1 | D15: one to four
H16: #food stuff sacks = | J16: 1 | K16: sm + lg | Q16: or label
A17: Travel-camping material is in a blue font
A19: Class | B19: Sub-class | K19: all weights are per person | O19: natural units | V19: Modifications to consider
A20: Food | B20: Meal | D20: 1=take, 0=no | E20: unit | F20: oz/unit | G20: units/day | H20: units /week | I20: units/month | J20: weeks | K20: /trip | L20: units (total) | M20: oz (total) | N20: lb | O20: have | P20: buy | Q20: cal/oz | R20: cal/week | S20: cal/day | T20: cal/lb | W20: Simplification
A21: =K8/C8 -> 1500 | B21: Breakfast | L21: needed | M21: needed | W21: More than one person, assuming similar personal gear…
A22: target | C22: Granola (~116 cal/oz) | D22: 1 | E22: cup | F22: 3.5 | H22: 3.5 | J22: =C12 -> 1 | L22: =M22/F22 -> 3.5 | M22: =D22*F22*H22*J22 -> 12.25 | N22: =M22/16 -> 0.765625 | O22: 12 | P22: =MAX(M22-O22,0) -> 0.25 | Q22: 116 | R22: =H22*F22*Q22*D22 -> 1421 | S22: =R22/7 -> 203 | T22: =Q22*16 -> 1856 | X22: … and shared gear, e.g., one stove / four people
A23: mean cal/day | C23: Milk powder | D23: 0 | E23: cup | F23: 6.5 | H23: =J12 -> 1 | J23: =C12 -> 1 | L23: =M23/F23 -> 0 | M23: =D23*F23*H23*J23 -> 0 | N23: =M23/16 -> 0 | Q23: 100 | R23: =H23*F23*Q23*D23 -> 0 | S23: =R23/7 -> 0 | T23: =Q23*16 -> 1600 | W23: Automated entry of new items
C24: Milkman | D24: 1 | E24: packet | F24: 3.44 | H24: =ROUNDUP((C2+C3)/4,0) -> 2 | L24: =H24*C12*D24 -> 2 | M24: =D24*H24*3.44 -> 6.88 | N24: 0.43 | O24: 7 | P24: =MAX(L24-O24,0) -> 0 | Q24: 100 | R24: =Q24*M24 -> 688 | S24: =R24/7 -> 98.28571429 | T24: 1600
A25: =SUM(C2:C6) -> 7 | C25: Coffee | D25: 1 | E25: oz | F25: 1 | G25: 1.2 | H25: =G25*7 -> 8.4 | J25: =C12 -> 1 | L25: 8.4 | M25: =D25*F25*H25*J25 -> 8.4 | N25: 0.525 | O25: 20 | P25: =MAX(M25-O25,0) -> 0 | Q25: 0 | R25: =H25*F25*Q25*D25 -> 0 | S25: 0 | T25: 0
A26: days | G26: 5 heaping tbsp | V26: =N176 -> 33.93171875
C27: Coffee, freeze dried, consider
C28: Sugar (~110 cal/oz) | D28: 1 | E28: oz | F28: 1 | H28: 3.5 | J28: =C12 -> 1 | L28: =M28/F28 -> 3.5 | M28: =D28*F28*H28*J28 -> 3.5 | N28: 0.21875 | O28: 2 | P28: =MAX(L28-O28,0) -> 1.5 | Q28: 110 | R28: =H28*F28*Q28*D28 -> 385 | S28: 55 | T28: 1760
C29: Vitamins, meds, ibuprofen | D29: 1 | E29: oz | F29: 1 | H29: 1 | J29: =C12 -> 1 | L29: =M29/F29 -> 1 | M29: =D29*F29*H29*J29 -> 1 | N29: =M29/16 -> 0.0625 | O29: plenty | P29: 0 | Q29: 0 | R29: =H29*F29*Q29*D29 -> 0 | S29: 0 | T29: 0 | V29: qd-4 ibu 1 allegra 100mg losartan 25 mg hctz 1(b,C,D,E,Glucosamine, Multi)
A30: may sustitute | C30: Teas | D30: 1 | E30: pkt | F30: 0.0625 | H30: 7 | J30: =C12 -> 1 | L30: 7 | M30: =D30*F30*H30*J30 -> 0.4375 | N30: =M30/16 -> 0.02734375 | O30: 9 | P30: =MAX(L30-O30,0) -> 0 | Q30: 0 | R30: =H30*F30*Q30*D30 -> 0 | S30: 0 | T30: 0
C31: Drinks, KoolAid | D31: 1 | E31: pkt | F31: 0.13 | H31: 3 | J31: =C12 -> 1 | L31: =ROUND(H31*J31,0) -> 3 | M31: =L31*F31 -> 0.39 | N31: =M31/16 -> 0.024375 | O31: 1 | P31: =MAX(L31-O31,0) -> 2 | Q31: 0 | R31: =H31*F31*Q31*D31 -> 0 | S31: =R31/7 -> 0 | T31: =Q31*16 -> 0
A32: amounts | C32: Condensed milk | D32: 0 | E32: can | F32: 14 | H32: 1 | J32: =C12 -> 1 | K32: 1 | L32: 0 | M32: =D32*F32*H32*J32 -> 0 | N32: =M32/16 -> 0 | O32: 0 | P32: =MAX(L32-O32,0) -> 0 | Q32: 100 | R32: =D32*Q32*F32/J32 -> 0 | S32: 0 | T32: 1600
B33: Trail
C34: Sesame sticks | D34: 1 | E34: oz | F34: 1 | H34: 7 | J34: =C12 -> 1 | L34: =M34/F34 -> 7 | M34: =D34*F34*H34*J34 -> 7 | N34: =M34/16 -> 0.4375 | O34: 2 | P34: =MAX(M34-O34,0) -> 5 | Q34: 155 | R34: =H34*F34*Q34*D34 -> 1085 | S34: 155 | T34: 2480
A35: 1 cup = 2 2/3 fist | C35: Nuts (Peanuts, Cashews ~160 cal/oz) | D35: 1 | E35: oz | F35: 1 | H35: 10.5 | J35: =C12 -> 1 | L35: =M35/F35 -> 10.5 | M35: =D35*F35*H35*J35 -> 10.5 | N35: 0.65625 | O35: 0 | P35: =MAX(M35-O35,0) -> 10.5 | Q35: 160 | R35: =H35*F35*Q35*D35 -> 1680 | S35: 240 | T35: 2560
C36: Dried fruit | D36: 1 | E36: oz | F36: 1 | H36: 14 | J36: =C12 -> 1 | L36: 14 | M36: =D36*F36*H36*J36 -> 14 | N36: 0.875 | O36: 14 | P36: =MAX(M36-O36,0) -> 0 | Q36: 100 | R36: =H36*F36*Q36*D36 -> 1400 | S36: 200 | T36: 1600
B37: Dinner
C38: Rice, instant | D38: 1 | E38: oz | F38: 1 | H38: 7 | J38: =C12 -> 1 | L38: =M38/F38 -> 7 | M38: =D38*F38*H38*J38 -> 7 | N38: =M38/16 -> 0.4375 | O38: plenty | P38: 0 | Q38: 115 | R38: =H38*F38*Q38*D38 -> 805 | S38: 115 | T38: 1840
C39: Rice, regular, to work on
C40: Beans | D40: 1 | E40: oz | F40: 1 | H40: 7 | J40: =C12 -> 1 | L40: =M40/F40 -> 7 | M40: 7 | N40: =M40/16 -> 0.4375 | O40: 13 | P40: =MAX(M40-O40,0) -> 0 | Q40: 102 | R40: =H40*F40*Q40*D40 -> 714 | S40: 102 | T40: 1632
C41: Ramen | D41: 1 | E41: packet | F41: 2.5 | H41: =ROUNDUP(2*J12,0) -> 2 | J41: =C12 -> 1 | L41: =ROUND(H41*J41,0) -> 2 | M41: =L41*F41 -> 5 | N41: 0.3125 | O41: 2 | P41: =MAX(L41-O41,0) -> 0 | Q41: 102 | R41: 510 | S41: 72.85714286 | T41: 1632
C42: Broths | D42: 1 | E42: packet | F42: 0.5 | H42: =ROUNDUP(2*J12,0) -> 2 | J42: =C12 -> 1 | L42: =ROUND(H42*J42,0) -> 2 | M42: =L42*F42 -> 1 | N42: 0.0625 | O42: 8 | P42: =MAX(L42-O42,0) -> 0 | Q42: 70 | R42: 70 | S42: 10 | T42: 1120
C43: Jerky | D43: 1 | E43: packet | F43: 3 | H43: =ROUNDUP(J12,0) -> 1 | J43: =C12 -> 1 | L43: =ROUND(H43*J43,0) -> 1 | M43: 3 | N43: 0.1875 | O43: 0 | P43: =MAX(L43-0) -> 1 | Q43: 116 | R43: 348 | S43: 49.71428571 | T43: 1856
C44: Fruit bars | D44: 1 | E44: bar | F44: 1.2 | H44: 7 | J44: =C12 -> 1 | L44: =ROUND(H44*J44,0) -> 7 | M44: 8.4 | N44: 0.525 | O44: 0 | P44: =MAX(L44-O44,0) -> 7 | Q44: 100 | R44: 840 | S44: 120 | T44: 1600
C45: Turmeric | D45: 0 | E45: oz | F45: 1 | H45: 1 | J45: =C12 -> 1 | L45: =M45/F45 -> 0 | M45: 0 | N45: 0 | Q45: 0 | R45: 0 | S45: 0 | T45: 0
C46: Jalapenos | D46: 1 | E46: jalapeno | F46: 0.5 | H46: 2 | J46: =C12 -> 1 | L46: =ROUND(H46*J46,0) -> 2 | M46: =L46*F46 -> 1 | N46: 0.0625 | O46: 0 | P46: =MAX(L46-O46,0) -> 2 | Q46: 0 | R46: 0 | S46: 0 | T46: 0
C47: Garlic, packets | D47: 1 | E47: packet | F47: 1.5 | H47: 1 | J47: =C12 -> 1 | L47: =ROUND(H47*J47,0) -> 1 | M47: =L47*F47 -> 1.5 | N47: 0.09375 | O47: 4 | P47: =MAX(L47-O47,0) -> 0 | Q47: 0 | R47: 0 | S47: 0 | T47: 0
C48: Onion, thumb dia | D48: 1 | E48: onion | F48: 6 | H48: 1 | J48: =C12 -> 1 | L48: 1 | M48: 6 | N48: 0.375 | O48: 0 | P48: =MAX(L48-O48,0) -> 1 | Q48: 0 | R48: 0 | S48: 0 | T48: 0
C49: Lime | D49: 1 | E49: lime | F49: 2 | H49: 1 | J49: =C12 -> 1 | L49: 1 | M49: 2 | N49: 0.125 | O49: 0 | P49: =MAX(L49-O49,0) -> 1 | Q49: 0 | R49: 0 | S49: 0 | T49: 0
C50: Spice collection(review) | D50: 1 | E50: oz | F50: 1 | H50: 3 | J50: =C12 -> 1 | L50: 3 | M50: 3 | N50: 0.1875 | O50: plenty | P50: 0 | Q50: 0 | R50: 0 | S50: 0 | T50: 0
C51: Cajun seasoning etc | L51: 0 | M51: 0
C52: Salt | D52: 1 | E52: oz | F52: 1 | H52: 2 | J52: =C12 -> 1 | L52: 2 | M52: 2 | N52: 0.125 | O52: plenty | P52: 0 | Q52: 0 | R52: 0 | S52: 0 | T52: 0
C53: Olive oil (~240 cal/oz) | D53: 1 | E53: oz | F53: 1.5 | H53: =2*J12 -> 2 | J53: =C12 -> 1 | L53: 2 | M53: 3 | N53: 0.1875 | O53: plenty | P53: 0 | Q53: 240 | R53: =H53*F53*Q53*D54 -> 0 | S53: 0 | T53: 3840
B54: Stuff sacks | D54: 0 | E54: sack | F54: 4.5 | K54: =J16 -> 1 | L54: =K54 -> 1 | M54: =D54*F54*L54 -> 0 | N54: 0
B55: Bearvault | D55: 1 | E55: vault | F55: 41 | K55: 1 | L55: =K55 -> 1 | M55: =D55*F55*L55 -> 41 | N55: =M55/16 -> 2.5625
A56: Food, total (one person) | M56: =SUM(M22:M55) -> 155.2575 | N56: =M56/16 -> 9.70359375 | R56: =SUM(R22:R53) -> 9946 | S56: =R56/7 -> 1420.857143 | T56: =R56/N56 -> 1024.98108
C57: Backpacker’s food—am = granola and/or alt | trail = nuts & fruits | pm = rice, beans, dry/fresh veg | and variety—try out soups | crackers and more | Kool-Aid
C58: Granola alternates and supplements—Cream of wheat savory | and with sugar and blueberries | and made-up mixes from co-op bulk
C60: Utensils | D60: 1 | E60: item(s) | F60: 8.5 | K60: 1 | M60: =D60*F60 -> 8.5 | N60: =M60/16 -> 0.53125
C61: Stove-MSR Dragonfly | D61: 0 | E61: item(s) | F61: 14.5 | K61: 1 | M61: =D61*F61*K61/C15 -> 0 | N61: =M61/16 -> 0
C62: Stove-Pocket rocket | D62: 1 | E62: item(s) | F62: 3.5 | K62: 1 | M62: =D62*F62*K62/C15 -> 3.5 | N62: =M62/16 -> 0.21875
C63: Heat shield | D63: 0 | E63: item(s) | F63: 2.5 | K63: 1 | M63: =D63*F63*K63/C15 -> 0 | N63: 0
C64: Pot, titanium | D64: 1 | E64: item(s) | F64: 8 | K64: 1 | M64: =D64*F64*K64/C15 -> 8 | N64: 0.5
C65: Pot, stainless, 0.50 gal | D65: 0 | E65: item(s) | F65: 20 | K65: 1 | M65: =D65*F65*K65/C15 -> 0 | N65: 0
C66: Pot, stainless, 0.25 gal | D66: 0 | E66: item(s) | F66: 13 | K66: 1 | M66: =D66*F66*K66/C15 -> 0 | N66: 0
C67: Fuel bottle, 1 l tr/ 33oz | D67: 0 | E67: item(s) | F67: 7.6 | K67: =ROUNDUP(H71*C15/32,0) -> 1 | M67: =D67*F67*K67/C15 -> 0 | N67: =M67/16 -> 0
C68: Fuel bottle, 591 ml / 20oz | D68: =0 -> 0 | E68: item(s) | F68: 6 | K68: 1 | M68: 0 | N68: =M68/16 -> 0
C69: Fuel bottle, 325 ml / 11oz | D69: 0 | E69: item(s) | F69: 4 | K69: 1 | M69: 0 | N69: =M69/16 -> 0
C71: Fuel | E71: fl oz | F71: 0.7 | H71: =(32*(1+(C15-1)*0.5)*C12)/C15 -> 32 | M71: =F71*H71 -> 22.4 | N71: =M71/16 -> 1.4
D73: 1=take, 0=no | E73: unit | F73: oz/unit | G73: units/day | H73: units /week | I73: units/month | J73: weeks | K73: /trip | L73: units (total) | M73: oz (total) | N73: lb
C74: MSR Pocket Rocket Deluxe (get?) | D74: 0 | E74: item(s) | F74: 2.9 | G74: currently, a one person item | K74: 1 | M74: =D74*F74 -> 0 | N74: =M74/16 -> 0
C75: MSR cannisters 7.4 oz | D75: 0 | E75: item(s) | F75: 7.4 | J75: =C12 -> 1 | L75: =ROUNDUP((J76*H76)-INT(J76*H76),0) -> 1 | M75: =L75*F75 -> 7.4 | N75: 0.4625
C76: MSR cannisters 13.1 oz | D76: 1 | E76: item(s) | F76: 13.1 | H76: 1.4 | J76: =C12 -> 1 | L76: =INT(J76*H76) -> 1 | M76: =L76*F76 -> 13.1 | N76: =M76/16 -> 0.81875
A77: Cooking… total | M77: =SUM(M60:M76) -> 62.9 | N77: 3.93125
A79: Hiking, travel | I79: include in pack weight, 0 = no
C80: Backpack, Osprey, Ejos | D80: 1 | E80: item(s) | F80: 43 | I80: 1 | M80: =D80*F80*I80 -> 43 | N80: =M80/16 -> 2.6875
C81: Pack Cover, Osprey, Large | D81: 0 | E81: item(s) | F81: 3 | I81: 1 | M81: 0 | N81: =M81/16 -> 0
C82: Backpack, Osprey, Argon 85M | D82: 0 | E82: item(s) | F82: 104 | I82: 1 | M82: 0 | N82: =M82/16 -> 0
C83: Olive Jansport daypack | D83: 0 | E83: item(s) | F83: 17 | I83: 1 | M83: 0 | N83: =M83/16 -> 0
C84: Binoculars | D84: 0 | E84: item(s) | F84: 8.5 | I84: 1 | M84: 0 | N84: =M84/16 -> 0
C85: Rifle, .30-06 | D85: 0 | E85: item(s) | F85: 144 | I85: 1 | M85: 0 | N85: =M85/16 -> 0
C86: Shoes, ankle high | D86: 0 | E86: item(s) | F86: 48 | I86: 0 | M86: 0 | N86: 0
C87: Shoes, running | D87: 1 | E87: item(s) | F87: 30 | I87: 0 | M87: 0 | N87: 0
C88: Sneakers | D88: 0 | E88: item(s) | F88: 29 | I88: 1 | M88: 0 | N88: 0
C89: Sandals | D89: 1 | E89: item(s) | F89: 14 | I89: 1 | M89: 14 | N89: 0.875
C90: Shoes, dress | D90: 0 | E90: item(s) | F90: 26 | I90: 1 | M90: 0 | N90: =M90/16 -> 0
C91: MSR Snowshoes | D91: 0 | E91: item(s) | F91: 59 | I91: 1 | M91: 0 | N91: 0
C92: … MSR Snowshoe extebsuibs | D92: 0 | E92: item(s) | F92: 17 | I92: 1 | M92: 0 | N92: 0
C93: Cross-country skis and poles | D93: 0 | E93: item(s) | F93: 118 | I93: 1 | M93: 0 | N93: 0
C94: Crampons | D94: 0 | E94: item(s) | F94: 40.75 | I94: 1 | M94: 0 | N94: 0
C95: Trekking poles, Leki | D95: 1 | E95: item(s) | F95: 20 | I95: 1 | M95: 20 | N95: =M95/16 -> 1.25
C96: Insect netting | D96: 1 | E96: item(s) | F96: 1.5 | I96: 1 | M96: 1.5 | N96: 0.09375
C97: Pouch-misc items | D97: 1 | E97: item(s) | F97: 16.5 | I97: 1 | M97: 16.5 | N97: 1.03125
C98: Albuterol | D98: 0 | E98: item(s) | F98: 1.5 | I98: 1 | M98: 0 | N98: 0
C99: Maps, paper | D99: 1 | E99: item(s) | F99: 9.5 | I99: 1 | M99: 9.5 | N99: 0.59375
C100: Simple manual | D100: 2 | E100: item(s) | F100: 1.5 | I100: 1 | M100: 3 | N100: 0.1875
C101: Camera | D101: 0 | E101: item(s) | F101: 6.5 | I101: 1 | M101: 0 | N101: 0
C102: Phone | D102: 1 | E102: item(s) | F102: 3.5 | I102: 1 | M102: 3.5 | N102: 0.21875
C103: Cards, check, cash, key | D103: 1 | E103: item(s) | F103: 2 | I103: 1 | M103: 2 | N103: 0.125
C104: Batteries | D104: 1 | E104: item(s) | F104: 4.5 | I104: 1 | M104: 4.5 | N104: =M104/16 -> 0.28125
C105: Watch | D105: 1 | E105: item(s) | F105: 2 | I105: 1 | M105: 2 | N105: 0.125
C106: Plastic bags | D106: 1 | E106: item(s) | F106: 0.5 | I106: 1 | M106: 0.5 | N106: 0.03125
C108: H2O filter straw | D108: 1 | E108: item(s) | F108: 3 | I108: 1 | M108: =D108*F108*I108 -> 3 | N108: 0.1875
C109: 64 oz Platypus H2O bladder | D109: 0 | E109: item(s) | F109: 6 | I109: 1 | M109: =D109*F109*I109 -> 0 | N109: 0
C110: 32 oz Nalgene H2O bottle | D110: 1 | E110: item(s) | F110: 7 | I110: 1 | M110: =D110*F110*I110 -> 7 | N110: 0.4375
C111: H2O for platypus | D111: 0 | E111: oz | F111: 1 | G111: 64 | I111: 1 | M111: =D111*F111*G111*I111 -> 0 | N111: 0
C112: H2O for nalgene | D112: 0 | E112: oz | F112: 1 | G112: 32 | I112: 1 | M112: =D112*F112*G112*I112 -> 0 | N112: 0
A113: Hiking, total | M113: =SUM(M80:M112) -> 130 | N113: 8.125
A115: Camping
C116: Tent (Nemo, Elite 1p) + footprint | D116: 0 | E116: items(s) | F116: 39 | M116: =D116*F116 -> 0 | N116: =M116/16 -> 0 | Q116: take only if one person
C117: Tent (Sierra Designs, Flashlight) | D117: 0 | E117: items(s) | F117: 78 | M117: =D117*F117/2 -> 0 | N117: 0 | Q117: take if two people
C118: Bivvy | D118: 0 | E118: items(s) | F118: 17 | M118: =D118*F118 -> 0 | N118: 0 | Q118: take only if one person
C119: Bivvy - OR | D119: 0 | E119: items(s) | F119: 21 | M119: =D119*F119 -> 0 | N119: 0 | Q119: take only if one person
C120: Tarp 9'x9' | D120: 0 | E120: items(s) | F120: 33 | M120: =D120*F120 -> 0 | N120: 0
C121: Tarp 8'x6' | D121: 0 | E121: items(s) | F121: 25 | M121: =D121*F121 -> 0 | N121: 0
C122: Hyperlite tarp | D122: 1 | E122: items(s) | F122: 20 | M122: =D122*F122 -> 20 | N122: =M122/16 -> 1.25
C123: Ridge 10 stakes, lines 10 - 12', guys 4 -6'
C124: Ground sheet (separate) | D124: 0 | E124: items(s) | F124: 13 | M124: =D124*F124 -> 0 | N124: 0
C125: Footprint - MSR
C126: Sleeping bag, Western Mntnring | D126: 1 | E126: items(s) | F126: 18 | M126: =D126*F126 -> 18 | N126: =M126/16 -> 1.125
C127: Sleeping bag, Marmot | D127: 0 | E127: items(s) | F127: 34 | M127: 0 | N127: =M127/16 -> 0
C128: Sea to Summit Liner | D128: 0 | E128: items(s) | F128: 11 | M128: =D128*F128 -> 0 | N128: =M128/16 -> 0
C129: Ground pad | D129: 1 | E129: items(s) | F129: 7.5 | M129: 7.5 | N129: 0.46875
C130: Rope, straps | D130: 1 | E130: items(s) | F130: 3.5 | M130: 3.5 | N130: 0.21875
C131: Med sack | D131: 1 | E131: items(s) | F131: 16 | M131: 16 | N131: 1
C132: Toilet | D132: 1 | E132: items(s) | F132: 3.5 | M132: 3.5 | N132: 0.21875
A133: Camping, total | M133: =SUM(M116:M132) -> 68.5 | N133: 4.28125
A135: Clothes | B135: * summer, general | D135: Count | G135: 1=take, 0=no | I135: include in pk wt, 0=no
C136: Lite cap shirt* | D136: 1 | E136: item(s) | F136: 5.5 | G136: 1 | I136: 1 | M136: =D136*F136*G136*I136 -> 5.5 | N136: =M136/16 -> 0.34375
C137: Lite silk shirt | D137: 1 | E137: item(s) | F137: 3.5 | G137: 1 | I137: 1 | M137: =D137*F137*G137*I137 -> 3.5 | N137: =M137/16 -> 0.21875
C138: Lite cap shirt, tee / long sleeve* | D138: 1 | E138: item(s) | F138: 4.25 | G138: 0 | I138: 1 | M138: 0 | N138: =M138/16 -> 0
C139: Cap shirt, grey, hooded* | D139: 1 | E139: item(s) | F139: 5.5 | G139: 0 | I139: 1 | M139: 0 | N139: 0
C140: Steel grey warm shirt* | D140: 1 | E140: item(s) | F140: 10 | G140: 1 | I140: 1 | M140: 10 | N140: 0.625
C141: Mid wt cap z-neck | D141: 1 | E141: item(s) | F141: 9 | G141: 0 | I141: 1 | M141: 0 | N141: 0
C142: Collared shirt | D142: 1 | E142: item(s) | F142: 8 | G142: 0 | I142: 1 | M142: 0 | N142: 0
C143: Blk wind wall jacket, N Face | D143: 1 | E143: item(s) | F143: 26.5 | G143: 0 | I143: 1 | M143: 0 | N143: 0
C144: Blk lined jacket, N Face | D144: 1 | E144: item(s) | F144: 18 | G144: 0 | I144: 1 | M144: 0 | N144: 0
C145: Red wind wall jacket, Marmot | D145: 1 | E145: item(s) | F145: 23.5 | G145: 0 | I145: 1 | M145: 0 | N145: 0
C146: Rain jacket, Marmot* | D146: 1 | E146: item(s) | F146: 12.25 | G146: 1 | I146: 1 | M146: 12.25 | N146: 0.765625
C147: Rain jacket, Columbia | D147: 0 | E147: item(s) | F147: 18 | G147: 0 | I147: 1 | M147: 0 | N147: 0
C148: Down jacket, blue | D148: 0 | E148: item(s) | F148: 24 | G148: 0 | I148: 1 | M148: 0 | N148: =M148/16 -> 0
C149: Dress jacket | D149: 0 | E149: item(s) | F149: 26.5 | G149: 0 | I149: 1 | M149: 0 | N149: 0
C150: Gloves, lite | D150: 1 | E150: item(s) | F150: 1 | G150: 1 | I150: 1 | M150: 1 | N150: 0.0625
C151: Sun-visor* | D151: 1 | E151: item(s) | F151: 2 | G151: 1 | I151: 1 | M151: 2 | N151: =M151/16 -> 0.125
C152: Hat | D152: 1 | E152: item(s) | F152: 5 | G152: 0 | I152: 1 | M152: 0 | N152: 0
C153: Lite cap long u'wear* | D153: 1 | E153: item(s) | F153: 4 | G153: 0 | I153: 0 | M153: 0 | N153: 0
C154: Lite cap long u'wear, spare* | D154: 1 | E154: item(s) | F154: 4 | G154: 0 | I154: 1 | M154: =D154*F154*G154*I154 -> 0 | N154: 0
C155: Lite silk long u'wear* | D155: 1 | E155: item(s) | F155: 4.5 | G155: 1 | I155: 0 | M155: 0 | N155: =M155/16 -> 0
C156: Mid wt cap u'wear | D156: 1 | E156: item(s) | F156: 8 | G156: 0 | I156: 1 | M156: =D156*F156*G156*I156 -> 0 | N156: 0
C157: Short u'wear* | D157: 1 | E157: item(s) | F157: 4 | G157: 1 | I157: 1 | M157: =D157*F157*G157*I157 -> 4 | N157: 0.25
C158: Shorts* | D158: 1 | E158: item(s) | F158: 9 | G158: 1 | I158: 1 | M158: 9 | N158: 0.5625
C159: Hiking pants* | D159: 1 | E159: item(s) | F159: 16 | G159: 1 | I159: 1 | M159: 16 | N159: 1
C160: Belt* | D160: 1 | E160: item(s) | F160: 2 | G160: 1 | I160: 0 | M160: 0 | N160: 0
C161: Jeans | D161: 1 | E161: item(s) | F161: 24 | G161: 0 | I161: 1 | M161: 0 | N161: 0
C162: Rain pants* | D162: 1 | E162: item(s) | F162: 9 | G162: 1 | I162: 1 | M162: 9 | N162: 0.5625
C163: Heavy socks*, wear on travel | D163: 1 | E163: item(s) | F163: 4.5 | G163: 1 | I163: 0 | M163: 0 | N163: 0
C164: Heavy socks* | D164: 1 | E164: item(s) | F164: 4.5 | G164: 1 | I164: 1 | M164: =D164*F164*G164*I164 -> 4.5 | N164: 0.28125
C165: Intermediate sox | D165: 1 | E165: item(s) | F165: 3 | G165: 1 | I165: 1 | M165: =D165*F165*G165*I165 -> 3 | N165: 0.1875
C166: Lite sox* | D166: 1 | E166: item(s) | F166: 2 | G166: 0 | I166: 1 | M166: 0 | N166: 0
C167: Bandana* | D167: 1 | E167: item(s) | F167: 1 | G167: 1 | I167: 0 | M167: 0 | N167: 0
C168: MSR Towel* | D168: 1 | E168: item(s) | F168: 2 | G168: 0 | I168: 1 | M168: 0 | N168: 0
C169: Spade | D169: 1 | E169: item(s) | F169: 3.5 | G169: 1 | I169: 1 | M169: =D169*F169*G169*I169 -> 3.5 | N169: =M169/16 -> 0.21875
C170: Bear vault | D170: 1 | E170: item(s) | F170: 41 | G170: 1 | I170: 1 | M170: 41 | N170: 2.5625
A171: 0 | C171: Stuff sack* | D171: 1 | E171: item(s) | F171: 2 | G171: 0 | I171: 1 | M171: 0 | N171: 0
C172: … sack liner* | D172: 1 | E172: item(s) | F172: 1 | G172: 1 | I172: 1 | M172: 1 | N172: 0.0625
C173: … sack straps* | D173: 1 | E173: item(s) | F173: 1 | G173: 1 | I173: 1 | M173: 1 | N173: 0.0625
A174: Clothes, total | M174: =SUM(M136:M173) -> 126.25 | N174: 7.890625
A176: Total pack | M176: =M56+M77+M113+M133+M174 -> 542.9075 | N176: =M176/16 -> 33.93171875

Sheet Travel-camping
A1: Trip length
B2: Days = | C2: =C3*7 -> 7
B3: Weeks = | C3: 1
B4: Months = | C4: =C3/4.35 -> 0.2298850575
A6: Travel-camping material is in a blue font; the numbers here are mostly over and above the numbers for backpacking; obviously much streamlining is possible and needed
A8: Class | B8: Sub-class
A9: Food | B9: Meal | D9: 1=take, 0=no | E9: unit | F9: oz/unit | G9: units/day | H9: /week | I9: /month | J9: weeks | K9: /trip | L9: oz (total) | M9: lb
B10: Breakfast
C11: Granola | D11: 0 | E11: cup | F11: 4 | H11: 5 | J11: =C3 -> 1 | L11: =D11*F11*H11*J11 -> 0 | M11: =L11/16 -> 0
C12: Milk powder | D12: 0 | E12: cup | F12: 6.5 | H12: 1 | J12: =C3 -> 1 | L12: =D12*F12*H12*J12 -> 0 | M12: =L12/16 -> 0
C13: Coffee | D13: 1 | E13: oz | F13: 1 | G13: 5 tbsp | H13: 10 | J13: =C3 -> 1 | L13: 10 | M13: 0.625
C14: Sugar | D14: 1 | E14: oz | F14: 1 | H14: 7 | J14: =C3 -> 1 | L14: 7 | M14: 0.4375
C15: Vitamins, meds, xtra ibuprofen | D15: 1 | E15: oz | F15: 1 | H15: 3.25 | J15: =C3 -> 1 | L15: 3.25 | M15: =L15/16 -> 0.203125
C16: Teas, drinks | D16: 0 | E16: oz | F16: 1 | K16: 1.5 | L16: =D16*F16*K16 -> 0 | M16: =L16/16 -> 0
C17: Condensed milk | D17: 1 | E17: can | F17: 14 | H17: 2 | J17: 1 | L17: =D17*F17*H17*J17 -> 28 | M17: =L17/16 -> 1.75
B18: Trail
C19: Sesame sticks | D19: 1 | E19: fist | F19: 1.333333333 | H19: 4 | J19: =C3 -> 1 | L19: 5.333333333 | M19: =L19/16 -> 0.3333333333
C20: Nuts | D20: 1 | E20: fist | F20: 1.666666667 | H20: 4 | J20: =C3 -> 1 | L20: 6.666666667 | M20: 0.4166666667
C21: Dried fruit | D21: 1 | E21: fist | F21: 2.166666667 | H21: 4 | J21: =C3 -> 1 | L21: 8.666666667 | M21: 0.5416666667
B22: Dinner
C23: Rice, instant | D23: 0 | E23: fist | F23: 1.333333333 | H23: 7 | J23: =C3 -> 1 | L23: 0 | M23: =L23/16 -> 0
C24: Beans | D24: 0 | E24: fist | F24: 1.666666667 | H24: 6 | J24: =C3 -> 1 | L24: 0 | M24: =L24/16 -> 0
C25: Ramen | D25: 1 | E25: packet | F25: 2.5 | H25: 5 | J25: =C3 -> 1 | L25: 12.5 | M25: 0.78125
C26: Broths | D26: 1 | E26: packet | F26: 0.5 | H26: 2 | J26: =C3 -> 1 | L26: 1 | M26: 0.0625
C27: Jerky | D27: 0 | E27: packet | F27: 3 | H27: 1 | J27: =C3 -> 1 | L27: 0 | M27: 0
C28: Fruit bars | D28: 1 | E28: bar | F28: 1.2 | H28: 5 | J28: =C3 -> 1 | L28: 6 | M28: 0.375
C29: Turmeric | D29: 1 | E29: oz | F29: 1 | H29: 1 | J29: =C3 -> 1 | L29: 1 | M29: 0.0625
C30: Jalapenos | D30: 0 | E30: jalapeno | F30: 0.5 | H30: 2 | J30: =C3 -> 1 | L30: 0 | M30: 0
C31: Garlic, packets | D31: 0 | E31: packet | F31: 1.5 | H31: 1 | J31: =C3 -> 1 | L31: 0 | M31: 0
C32: Onion, thumb dia | D32: 0 | E32: onion | F32: 6 | H32: 1 | J32: =C3 -> 1 | L32: 0 | M32: 0
C33: Spices | D33: 0 | E33: oz | F33: 0.5 | H33: 3 | J33: =C3 -> 1 | L33: 0 | M33: 0
C34: Salt | D34: 1 | E34: oz | F34: 1 | H34: 2 | J34: =C3 -> 1 | L34: 2 | M34: 0.125
C35: Veg oil | D35: 0 | E35: oz | F35: 1 | H35: 2 | J35: =C3 -> 1 | L35: 0 | M35: 0
B36: Stuff sacks | D36: 0 | E36: sack | F36: 4 | K36: 1 | L36: =D36*F36*K36 -> 0 | M36: 0
A37: Food, total | L37: =SUM(L11:L36) -> 91.41666667 | M37: =L37/16 -> 5.713541667
A39: Cooking... | D39: Count
C40: Utensils | D40: 0 | E40: item(s) | F40: 8.5 | K40: 1 | L40: =D40*F40 -> 0 | M40: =L40/16 -> 0
C42: Stove-MSR Dragonfly | D42: 0 | E42: item(s) | F42: 14.5 | K42: 1 | L42: =D42*F42 -> 0 | M42: =L42/16 -> 0
C43: Heat shield | D43: 0 | E43: item(s) | F43: 2.5 | K43: 1 | L43: 0 | M43: 0
C44: Pot, titanium | D44: 0 | E44: item(s) | F44: 8 | K44: 1 | L44: 0 | M44: 0
C45: Pot, stainless, 0.50 gal | D45: 0 | E45: item(s) | F45: 20 | K45: 1 | L45: 0 | M45: 0
C46: Pot, stainless, 0.25 gal | D46: 0 | E46: item(s) | F46: 13 | K46: 1 | L46: 0 | M46: 0
C47: Fuel bottle, 1 l tr/ 33oz | D47: 0 | E47: item(s) | F47: 7.6 | K47: 1 | L47: =D47*F47 -> 0 | M47: =L47/16 -> 0
C48: Fuel bottle, 591 ml / 20oz | D48: 1 | E48: item(s) | F48: 6 | K48: 1 | L48: =D48*F48 -> 6 | M48: =L48/16 -> 0.375
C49: Fuel bottle, 325 ml / 11oz | D49: 0 | E49: item(s) | F49: 4 | K49: 1 | L49: =D49*F49 -> 0 | M49: =L49/16 -> 0
C51: Fuel | E51: fl oz | F51: 0.7 | H51: 32 | L51: =F51*H51 -> 22.4 | M51: =L51/16 -> 1.4
C53: MSR Pocket Rocket (get?) | D53: 0 | E53: item(s) | F53: 2.6 | K53: 1 | L53: =D53*F53 -> 0 | M53: =L53/16 -> 0
C54: MSR 16 oz cannister-ask at Ad-Edge | D54: 0 | E54: item(s) | F54: 16 | K54: 1 | L54: 0 | M54: 0
A55: Cooking… total | L55: =SUM(L40:L51) -> 28.4 | M55: 1.775
A57: Hiking, travel | I57: include in pack weight, 0 = no
C58: Backpack, Osprey, Ejos | D58: 0 | E58: item(s) | F58: 43 | I58: 1 | L58: =D58*F58*I58 -> 0 | M58: =L58/16 -> 0
C59: Backpack, Osprey, Argon 85M | D59: 0 | E59: item(s) | F59: 104 | I59: 1 | L59: =D59*F59*I59 -> 0 | M59: =L59/16 -> 0
C60: Olive Jansport daypack | D60: 1 | E60: item(s) | F60: 17 | I60: 1 | L60: =D60*F60*I60 -> 17 | M60: =L60/16 -> 1.0625
C61: Binoculars | D61: 0 | E61: item(s) | F61: 8.5 | I61: 1 | L61: =D61*F61*I61 -> 0 | M61: =L61/16 -> 0
C62: Rifle, .30-06 | D62: 0 | E62: item(s) | F62: 144 | I62: 1 | L62: 0 | M62: 0
C63: Shoes, ankle high | D63: 0 | E63: item(s) | F63: 48 | I63: 0 | L63: 0 | M63: 0
C64: Shoes, running | D64: 0 | E64: item(s) | F64: 30 | I64: 0 | L64: 0 | M64: 0
C65: Sneakers | D65: 0 | E65: item(s) | F65: 29 | I65: 1 | L65: 0 | M65: 0
C66: Sandals | D66: 0 | E66: item(s) | F66: 19 | I66: 1 | L66: 0 | M66: 0
C67: Shoes, dress | D67: 1 | E67: item(s) | F67: 26 | I67: 1 | L67: 26 | M67: 1.625
C68: MSR Snowshoes | D68: 0 | E68: item(s) | F68: 59 | I68: 1 | L68: 0 | M68: 0
C69: … MSR Snowshoe extebsuibs | D69: 0 | E69: item(s) | F69: 17 | I69: 1 | L69: 0 | M69: 0
C70: Skis and poles | D70: 0 | E70: item(s) | F70: 118 | I70: 1 | L70: 0 | M70: 0
C71: Crampons | D71: 0 | E71: item(s) | F71: 40.75 | I71: 1 | L71: 0 | M71: 0
C72: Trekking poles, Leki | D72: 0 | E72: item(s) | F72: 20 | I72: 1 | L72: =D72*F72*I72 -> 0 | M72: =L72/16 -> 0
C73: Insect netting | D73: 0 | E73: item(s) | F73: 1.5 | I73: 1 | L73: 0 | M73: 0
C74: Pouch-misc items | D74: 0 | E74: item(s) | F74: 16.5 | I74: 1 | L74: 0 | M74: 0
C75: Albuterol | D75: 0 | E75: item(s) | F75: 1.5 | I75: 1 | L75: 0 | M75: 0
C76: Maps, paper | D76: 0 | E76: item(s) | F76: 9.5 | I76: 1 | L76: 0 | M76: 0
C77: Simple manual | D77: 0 | E77: item(s) | F77: 1 | I77: 1 | L77: 0 | M77: 0
C78: Camera | D78: 0 | E78: item(s) | F78: 6.5 | I78: 1 | L78: 0 | M78: 0
C79: Phone | D79: 0 | E79: item(s) | F79: 3.5 | I79: 1 | L79: 0 | M79: 0
C80: Cards, check, cash, key | D80: 0 | E80: item(s) | F80: 2 | I80: 1 | L80: 0 | M80: 0
C81: Batteries | D81: 0 | E81: item(s) | F81: 4.5 | I81: 1 | L81: 0 | M81: 0
C82: Watch | D82: 0 | E82: item(s) | F82: 2 | I82: 1 | L82: 0 | M82: 0
C83: Plastic bags | D83: 0 | E83: item(s) | F83: 0.5 | I83: 1 | L83: 0 | M83: 0
C85: H2O filter straw | D85: 0 | E85: item(s) | F85: 2 | I85: 1 | L85: =D85*F85*I85 -> 0 | M85: 0
C86: 64 oz Platypus H2O bladder | D86: 0 | E86: item(s) | F86: 6 | I86: 1 | L86: =D86*F86*I86 -> 0 | M86: 0
C87: 32 oz Nalgene H2O bottle | D87: 0 | E87: item(s) | F87: 7 | I87: 1 | L87: =D87*F87*I87 -> 0 | M87: 0
C88: H2O for platypus | D88: 0 | E88: oz | F88: 1 | G88: 64 | I88: 1 | L88: =D88*F88*G88*I88 -> 0 | M88: 0
C89: H2O for nalgene | D89: 0 | E89: oz | F89: 1 | G89: 32 | I89: 1 | L89: =D89*F89*G89*I89 -> 0 | M89: 0
A90: Hiking, total | L90: =SUM(L58:L89) -> 43 | M90: 2.6875
A92: Camping
C93: Tent (Nemo, Elite 1p) + footprint | D93: 0 | E93: items(s) | F93: 39 | L93: =D93*F93 -> 0 | M93: =L93/16 -> 0
C94: Tent (Sierra Designs, Flashlight) | D94: 0 | E94: items(s) | F94: 78 | L94: 0 | M94: 0
C95: Bivvy | D95: 0 | E95: items(s) | F95: 17 | L95: 0 | M95: 0
C96: Tarp 9'x9' | D96: 0 | E96: items(s) | F96: 33 | L96: 0 | M96: 0
C97: Tarp 8'x8' | D97: 0 | E97: items(s) | F97: 25 | L97: 0 | M97: 0
C98: Ground sheet (separate) | D98: 0 | E98: items(s) | F98: 13 | L98: 0 | M98: 0
C99: Sleeping bag, Western Mntnring | D99: 0 | E99: items(s) | F99: 18 | L99: 0 | M99: 0
C100: Sleeping bag, Marmot | D100: 0 | E100: items(s) | F100: 34 | L100: 0 | M100: 0
C101: Air mattress | D101: 0 | E101: items(s) | F101: 14.5 | L101: 0 | M101: 0
C102: Rope, straps | D102: 0 | E102: items(s) | F102: 3.5 | L102: 0 | M102: 0
C103: Med sack | D103: 0 | E103: items(s) | F103: 16 | L103: 0 | M103: 0
C104: Toilet | D104: 1 | E104: items(s) | F104: 3.5 | L104: 3.5 | M104: 0.21875
A105: Camping, total | L105: =SUM(L93:L104) -> 3.5 | M105: 0.21875
A107: Clothes | B107: * summer, general | D107: Count | G107: 1=take, 0=no | I107: include in pk wt, 0=no
C108: Lite cap shirt* | D108: 0 | E108: item(s) | F108: 4.25 | G108: 1 | I108: 1 | L108: =D108*F108*G108*I108 -> 0 | M108: =L108/16 -> 0
C109: Lite cap shirt, tee / long sleeve* | D109: 0 | E109: item(s) | F109: 4.25 | G109: 1 | I109: 1 | L109: =D109*F109*G109*I109 -> 0 | M109: =L109/16 -> 0
C110: Cap shirt, grey, hooded* | D110: 0 | E110: item(s) | F110: 5.5 | G110: 1 | I110: 1 | L110: 0 | M110: 0
C111: Steel grey warm shirt* | D111: 0 | E111: item(s) | F111: 10 | G111: 1 | I111: 0 | L111: 0 | M111: 0
C112: Mid wt cap z-neck | D112: 0 | E112: item(s) | F112: 9 | G112: 0 | I112: 1 | L112: 0 | M112: 0
C113: Collared shirt | D113: 1 | E113: item(s) | F113: 8 | G113: 0 | I113: 1 | L113: 0 | M113: 0
C114: Blk wind wall jacket, N Face | D114: 0 | E114: item(s) | F114: 26.5 | G114: 0 | I114: 1 | L114: 0 | M114: 0
C115: Blk lined jacket, N Face | D115: 0 | E115: item(s) | F115: 18 | G115: 0 | I115: 1 | L115: 0 | M115: 0
C116: Red wind wall jacket, Marmot | D116: 0 | E116: item(s) | F116: 23.5 | G116: 0 | I116: 1 | L116: 0 | M116: 0
C117: Rain jacket, Marmot* | D117: 1 | E117: item(s) | F117: 12.25 | G117: 1 | I117: 1 | L117: 12.25 | M117: 0.765625
C118: Rain jacket, Columbia | D118: 1 | E118: item(s) | F118: 18 | G118: 0 | I118: 1 | L118: 0 | M118: 0
C119: Down jacket, blue | D119: 1 | E119: item(s) | F119: 24 | G119: 0 | I119: 1 | L119: 0 | M119: 0
C120: Dress jacket | D120: 1 | E120: item(s) | F120: 26.5 | G120: 0 | I120: 1 | L120: 0 | M120: 0
C121: Gloves, lite | D121: 0 | E121: item(s) | F121: 1 | G121: 0 | I121: 1 | L121: 0 | M121: 0
C122: Sun-visor* | D122: 0 | E122: item(s) | F122: 2 | G122: 1 | I122: 1 | L122: 0 | M122: 0
C123: Hat | D123: 0 | E123: item(s) | F123: 5 | G123: 0 | I123: 1 | L123: 0 | M123: 0
C124: Lite cap long u'wear* | D124: 0 | E124: item(s) | F124: 4 | G124: 1 | I124: 0 | L124: 0 | M124: 0
C125: Lite cap long u'wear, spare* | D125: 0 | E125: item(s) | F125: 4 | G125: 1 | I125: 1 | L125: 0 | M125: 0
C126: Mid wt cap u'wear | D126: 0 | E126: item(s) | F126: 8 | G126: 0 | I126: 1 | L126: 0 | M126: 0
C127: Short u'wear* | D127: 0 | E127: item(s) | F127: 4 | G127: 1 | I127: 1 | L127: 0 | M127: 0
C128: Shorts* | D128: 0 | E128: item(s) | F128: 9 | G128: 1 | I128: 1 | L128: 0 | M128: 0
C129: Hiking pants* | D129: 0 | E129: item(s) | F129: 16 | G129: 1 | I129: 0 | L129: 0 | M129: 0
C130: Belt* | D130: 0 | E130: item(s) | F130: 2 | G130: 1 | I130: 0 | L130: 0 | M130: 0
C131: Jeans | D131: 1 | E131: item(s) | F131: 24 | G131: 1 | I131: 1 | L131: 24 | M131: 1.5
C132: Rain pants* | D132: 0 | E132: item(s) | F132: 9 | G132: 1 | I132: 1 | L132: 0 | M132: 0
C133: Heavy socks*, wear on travel | D133: 0 | E133: item(s) | F133: 4.5 | G133: 1 | I133: 0 | L133: 0 | M133: 0
C134: Heavy socks* | D134: 0 | E134: item(s) | F134: 4.5 | G134: 1 | I134: 1 | L134: 0 | M134: 0
C135: Intermediate sox | D135: 0 | E135: item(s) | F135: 3 | G135: 0 | I135: 1 | L135: 0 | M135: 0
C136: Lite sox* | D136: 0 | E136: item(s) | F136: 2 | G136: 1 | I136: 1 | L136: 0 | M136: 0
C137: Bandana* | D137: 0 | E137: item(s) | F137: 1 | G137: 1 | I137: 0 | L137: 0 | M137: 0
C138: MSR Towel* | D138: 0 | E138: item(s) | F138: 2 | G138: 1 | I138: 1 | L138: 0 | M138: 0
C139: Stuff sack* | D139: 0 | E139: item(s) | F139: 2 | G139: 1 | I139: 1 | L139: 0 | M139: 0
C140: … sack liner* | D140: 0 | E140: item(s) | F140: 1 | G140: 1 | I140: 1 | L140: 0 | M140: 0
C141: … sack straps* | D141: 0 | E141: item(s) | F141: 1 | G141: 1 | I141: 1 | L141: 0 | M141: 0
A142: Clothes, total | L142: =SUM(L108:L141) -> 36.25 | M142: 2.265625
A144: Total pack | L144: =L37+L55+L90+L105+L142 -> 202.5666667 | M144: =L144/16 -> 12.66041667

Sheet Planning
A1: Planning and preparation
B2: hiking list | C2: (html)
B3: hiking list-long | C3: (html)
B5: Main
C6: plan-prep aim-what-where-itinerary-travel > tickets, permits, hikes, air-forest conditions
C7: trial pack + hike-with-old-pack
C8: last min mail home, feet, fresh items
B10: Get
C11: hiking gear and supplies
C12: light stove
C13: town and camping supplies
C14: short sleeve t-shirt
C15: lite z-neck shirt
A18: Total pack weight for backpacking and travel = | F18: =Backpacking!M176+'Travel-camping'!L144 -> 745.4741667 | G18: oz | H18: =F18/16 -> 46.59213542 | I18: lb

Sheet Nutrition for hiking
B2: Also see | C2: diet and exercise.xlsm
C5: Nutrient needs—protein, carbs, fats, vitamins, minerals, roughage, and water
D6: Hydration
D7: ¾ liters of water before hiking; ¼ liter frequently during; and 1 – 2 liters after
D9: Vitamins and meds
D10: With breakfast and / or supper
D12: Meals
E13: Breakfast—before hiking
E14: About 500 cal, some protein, low fat and fiber
E15: On a rest day eat less calories, more fiber
E16: Trail
E17: About 180 – 240 cal (45 – 60 g) per hour—1440 cal for 6 hours of hiking
E18: Replenish electrolytes—salty snacks, salt tabs, electrolyte drinks / supplements
E19: Evening meal
E20: Eat 30 – 45 minutes after hiking—when the body is receptive to replenishment
E21: Backpacker.com recommends 4:1 carb to protein
E22: Protein and collagen supplements, higher fat content than breakfast and trail
E23: Aim for 500+ cal (2500+ cal / day); Backpacker.com recommends 4:1 carb:protein
E24: Before sleep
E25: Dessert of not too concentrated sugar and fluids with the evening meal
E26: Examples: fruit bars, energy nuggets, granola …
E27: Sugar free alternative to dessert—nuts, sesame sticks …
